bitfinex-derivatives/quotes_SOLF0:USTF0_20250719
["timestamp","ask_amount","ask_price","bid_price","bid_amount"]
[1752966723595,3.05,176.69,176.68,111.5366]
[1752966724494,3.05,176.69,176.65,3.06]
[1752966724799,4.26747564,176.67,176.65,105.84]
[1752966725099,3.05,176.67,176.66,3.06]
[1752966725996,3.05,176.67,176.66,8.7175]
[1752966728599,3.05,176.67,176.66,5.6575]
[1752966729296,3.05,176.67,176.66,8.7175]
[1752966733605,1.21747564,176.7,176.68,5.6568]
[1752966733905,1.21747564,176.7,176.68,8.7168]
[1752966734104,3.05,176.69,176.68,111.4968]
[1752966735505,3.05,176.69,176.68,108.4368]
[1752966738709,3.05,176.69,176.68,102.78]
[1752966742511,3.05,176.69,176.66,8.7074]
[1752966742711,3.02,176.67,176.63,3.05]
[1752966743011,3.02,176.65,176.63,105.83]
[1752966743708,3.02,176.65,176.64,8.7081]
[1752966747712,3.02,176.72,176.65,3.05]
[1752966747907,3.02,176.72,176.7,1.21747564]
[1752966748214,3.02,176.74,176.73,5.6552]
[1752966748414,4.23747564,176.78,176.74,3.05]
[1752966748612,4.23747564,176.78,176.73,1.21747564]
[1752966748613,1.21747564,176.78,176.76,3.05]
[1752966748809,3.02,176.77,176.76,3.05]
[1752966749214,3.02,176.77,176.76,8.7042]
[1752966750216,3.02,176.77,176.76,3.05]
[1752966750411,3.02,176.77,176.75,108.4345]
[1752966750613,3.02,176.77,176.75,105.83]
[1752966752212,3.02,176.77,176.75,102.78]
[1752966753623,3.02,176.86,176.8,3.05]
[1752966753817,3.02,176.86,176.8,105.81]
[1752966753818,3.02,176.85,176.8,105.81]
[1752966754118,3.02,176.85,176.81,3.05]
[1752966754718,3.02,176.84,176.81,3.05]
[1752966755110,8.6718,176.84,176.81,3.05]
[1752966755310,3.02,176.83,176.8,105.81]
[1752966757820,3.02,176.83,176.8,102.76]
[1752966758910,8.6721,176.83,176.8,102.76]
[1752966759112,3.02,176.82,176.8,102.76]
[1752966760216,5.6518,176.84,176.8,105.81]
[1752966760424,3.02,176.83,176.81,3.05]
[1752966766525,5.6521,176.83,176.8,102.76]
[1752966766725,3.02,176.82,176.8,102.76]
[1752966767119,3.02,176.82,176.77,3.05]
[1752966767423,3.02,176.8,176.76,102.7]
[1752966767732,8.6731,176.8,176.76,102.7]
[1752966767930,3.02,176.79,176.76,102.7]
[1752966768324,3.02,176.79,176.76,105.75]
[1752966768924,3.02,176.79,176.76,111.4043]
[1752966769130,3.02,176.79,176.77,3.05]
[1752966770928,3.02,176.79,176.76,102.7]
[1752966771129,3.02,176.79,176.75,102.72]
[1752966771330,3.02,176.79,176.75,105.95]
[1752966771526,5.6535,176.79,176.75,105.95]
[1752966771732,3.26,176.78,176.76,3.23]
[1752966774434,5.16090886,176.78,176.75,102.72]
[1752966774634,3.26,176.77,176.71,3.23]
[1752966774936,3.26,176.77,176.72,105.93]
[1752966775232,3.26,176.77,176.72,102.7]
[1752966775438,3.26,176.77,176.74,3.23]
[1752966776034,3.26,176.77,176.75,3.23]
[1752966776836,5.654,176.77,176.75,3.23]
[1752966777038,1.90090886,176.79,176.75,3.23]
[1752966777238,3.26,176.78,176.75,3.23]
[1752966778338,3.26,176.78,176.76,3.23]
[1752966778834,3.26,176.78,176.75,5.6544]
[1752966779140,3.26,176.78,176.77,3.23]
[1752966783142,5.6537,176.78,176.75,3.23]
[1752966783445,3.26,176.76,176.75,3.23]
[1752966783845,3.26,176.76,176.75,8.8846]
[1752966784048,3.26,176.78,176.76,3.23]
[1752966784343,5.6535,176.79,176.75,5.6546]
[1752966784543,3.26,176.77,176.75,5.6546]
[1752966785041,3.26,176.77,176.76,3.23]
[1752966789149,3.26,176.77,176.76,8.8843]
[1752966789544,3.26,176.77,176.76,3.23]
[1752966790859,3.26,176.77,176.76,8.8843]
[1752966792160,8.914,176.77,176.74,3.23]
[1752966792354,3.26,176.76,176.74,3.23]
[1752966792961,3.26,176.76,176.75,8.8845]
[1752966797157,3.26,176.76,176.75,5.6545]
[1752966797562,3.26,176.76,176.75,8.8845]
[1752966828185,3.14,176.82,176.75,3.02]
[1752966828382,3.14,176.81,176.77,1.21658503]
[1752966828688,3.14,176.79,176.76,108.3541]
[1752966829185,8.7936,176.79,176.76,111.3741]
[1752966829382,3.14,176.79,176.76,108.3541]
[1752966829688,3.14,176.79,176.77,5.6539]
[1752966830783,8.7936,176.79,176.76,111.3741]
[1752966831691,1.21658503,176.78,176.76,108.3541]
[1752966831992,3.11,176.77,176.76,111.5241]
[1752966832192,3.11,176.77,176.76,108.3541]
[1752966832388,3.11,176.77,176.75,102.7]
[1752966832691,3.11,176.77,176.75,105.87]
[1752966832894,3.11,176.77,176.75,111.5246]
[1752966835987,8.764,176.77,176.75,111.5246]
[1752966836392,3.11,176.76,176.75,111.5246]
[1752966836990,1.21658503,176.76,176.71,7.88687741]
[1752966837191,3.11,176.75,176.72,102.7]
[1752966837697,3.11,176.73,176.72,102.7]
[1752966838993,3.11,176.73,176.68,4.38658503]
[1752966839297,3.11,176.71,176.68,108.3367]
[1752966839496,5.6561,176.71,176.68,108.3367]
[1752966839797,3.11,176.7,176.68,108.3367]
[1752966840498,3.11,176.7,176.69,5.6565]
[1752966840692,3.11,176.7,176.69,8.8265]
[1752966840996,3.11,176.7,176.68,102.68]
[1752966841197,3.11,176.7,176.68,105.85]
[1752966841895,3.11,176.7,176.68,111.5067]
[1752966842796,8.7662,176.7,176.68,105.85]
[1752966842989,3.11,176.69,176.68,102.68]
[1752966846298,3.11,176.69,176.68,105.85]
[1752966846600,3.11,176.69,176.68,111.5068]
[1752966848400,3.11,176.69,176.68,105.85]
[1752966848602,3.11,176.69,176.68,102.68]
[1752966848901,8.7665,176.69,176.68,102.68]
[1752966849996,9.98308503,176.69,176.68,102.68]
[1752966851696,3.11,176.67,176.66,102.72]
[1752966852305,3.11,176.67,176.66,105.89]
[1752966853004,3.11,176.67,176.66,111.5475]
[1752966854505,3.11,176.67,176.66,105.89]
[1752966859209,3.11,176.67,176.66,111.5475]
[1752966860611,3.11,176.67,176.66,105.89]
[1752966861504,3.11,176.67,176.63,3.08]
[1752966861707,3.15,176.65,176.64,102.72]
[1752966861903,3.15,176.65,176.64,105.8]
[1752966862110,3.15,176.65,176.64,3.08]
[1752966862305,3.15,176.65,176.63,3.08]
[1752966862511,3.15,176.65,176.63,105.8]
[1752966862820,5.6578,176.65,176.63,105.8]
[1752966863117,3.15,176.64,176.63,105.8]
[1752966869820,3.15,176.64,176.62,5.6587]
[1752966870014,3.15,176.64,176.63,102.72]
[1752966870718,8.8081,176.64,176.63,102.72]
[1752966873320,8.8081,176.64,176.63,105.8]
[1752966873525,10.02448503,176.65,176.64,3.08]
[1752966873820,1.21658503,176.66,176.64,3.08]
[1752966874014,3.15,176.67,176.66,3.08]
[1752966874223,4.36658503,176.68,176.66,3.08]
[1752966874418,4.36658503,176.68,176.67,3.08]
[1752966875723,3.15,176.68,176.67,3.08]
[1752966879027,6.87258503,176.71,176.67,4.29658503]
[1752966879228,1.21658503,176.71,176.69,3.08]
[1752966879629,6.87248503,176.71,176.69,3.08]
[1752966879929,3.15,176.7,176.69,3.08]
[1752966883525,5.6559,176.71,176.69,3.08]
[1752966883828,3.15,176.7,176.69,3.08]
[1752966884633,3.15,176.72,176.69,3.08]
[1752966884932,3.15,176.72,176.69,4.29658503]
[1752966885136,3.15,176.72,176.7,3.08]
[1752966885430,3.15,176.72,176.71,102.72]
[1752966885729,1.21658503,176.75,176.72,3.08]
[1752966885925,3.15,176.75,176.72,3.08]
[1752966886232,1.21658503,176.76,176.73,3.08]
[1752966886427,3.15,176.75,176.74,105.8]
[1752966886931,3.15,176.75,176.74,102.72]
[1752966887828,3.15,176.75,176.74,105.8]
[1752966889840,3.15,176.76,176.75,3.08]
[1752966895638,3.33,176.84,176.76,3.14]
[1752966895838,3.33,176.84,176.78,3.14]
[1752966896037,3.33,176.79,176.77,102.68]
[1752966896342,4.54658503,176.78,176.75,3.14]
[1752966896535,3.33,176.77,176.76,102.68]
[1752966896735,3.33,176.77,176.72,4.35658503]
[1752966896935,3.33,176.75,176.73,105.82]
[1752966897841,1.21658503,176.76,176.74,3.14]
[1752966898443,3.33,176.75,176.74,3.14]
[1752966899844,3.33,176.75,176.73,105.82]
[1752966900045,3.33,176.75,176.73,102.68]
[1752966900545,1.21658503,176.74,176.73,102.68]
[1752966900845,4.54658503,176.74,176.73,102.68]
[1752966906246,10.20148503,176.74,176.73,102.68]
[1752966906651,1.21658503,176.74,176.7,102.66]
[1752966906850,3.33,176.73,176.7,105.8]
[1752966908951,4.54658503,176.73,176.7,105.8]
[1752966909154,4.54658503,176.71,176.7,102.66]
[1752966909354,3.33,176.71,176.7,105.8]
[1752966913855,3.33,176.71,176.7,102.66]
[1752966914656,10.20248503,176.71,176.7,102.66]
[1752966918054,3.33,176.68,176.67,105.82]
[1752966918260,3.33,176.68,176.67,102.68]
[1752966918859,3.33,176.68,176.67,105.82]
[1752966919363,8.9868,176.68,176.67,102.68]
[1752966920360,3.33,176.68,176.67,102.68]
[1752966922365,3.3,176.67,176.66,3.34]
[1752966922565,3.3,176.67,176.66,106.02]
[1752966923266,8.9571,176.67,176.66,106.02]
[1752966923561,10.17368503,176.67,176.66,102.68]
[1752966925364,3.3,176.64,176.63,102.68]
[1752966926264,3.3,176.64,176.63,106.02]
[1752966926768,1.21658503,176.65,176.63,106.02]
[1752966927068,4.51658503,176.65,176.64,3.34]
[1752966928266,10.17438503,176.65,176.63,102.68]
[1752966928467,3.3,176.64,176.63,102.68]
[1752966929871,8.9581,176.64,176.63,102.68]
[1752966931672,8.9581,176.64,176.63,106.02]
[1752966933176,8.9581,176.64,176.63,102.68]
[1752966935277,8.9581,176.64,176.63,106.02]
[1752966935572,8.9581,176.64,176.63,3.34]
[1752966935768,8.9581,176.64,176.63,106.04]
[1752966936580,8.9581,176.64,176.63,102.7]
[1752966937381,5.6591,176.61,176.6,3.34]
[1752966937576,8.9591,176.61,176.6,106.04]
[1752966938080,3.3,176.61,176.6,106.04]
[1752966938879,11.3118,176.71,176.61,3.34]
[1752966939081,4.51658503,176.64,176.63,3.34]
[1752966940188,10.17488503,176.64,176.63,3.34]
[1752966942783,3.3,176.64,176.63,3.34]
[1752966942996,5.6578,176.65,176.63,3.34]
[1752966943388,8.9578,176.65,176.63,3.34]
[1752966944085,5.6576,176.66,176.63,8.9983]
[1752966944291,8.9576,176.66,176.64,3.34]
[1752966944992,5.6576,176.66,176.65,102.72]
[1752966945193,5.6576,176.66,176.65,106.06]
[1752966945595,8.9576,176.66,176.65,106.06]
[1752966956492,3.3,176.66,176.65,106.06]
[1752966963700,3.3,176.66,176.65,111.7178]
[1752966963999,1.21658503,176.67,176.66,3.21]
[1752966964000,3.22,176.67,176.66,3.21]
[1752966965800,4.43658503,176.68,176.66,5.6575]
[1752966966000,4.43658503,176.68,176.67,105.91]
[1752966966603,3.22,176.68,176.67,105.91]
[1752966967799,8.8768,176.68,176.67,105.91]
[1752966968804,8.8768,176.68,176.67,102.7]
[1752966970103,8.8768,176.68,176.67,105.91]
[1752966970604,3.22,176.68,176.67,105.91]
[1752966975412,8.8768,176.68,176.67,105.91]
[1752966975614,8.8768,176.68,176.67,102.7]
[1752966975806,3.22,176.68,176.67,102.7]
[1752966976711,3.22,176.68,176.67,105.91]
[1752966982509,8.8768,176.68,176.67,102.7]
[1752966983914,3.22,176.68,176.67,105.82]
[1752966989917,6.87288503,176.7,176.67,105.82]
[1752966990122,3.03,176.69,176.68,3.12]
[1752966990418,3.03,176.69,176.68,105.8]
[1752966994123,8.6865,176.69,176.68,105.8]
[1752966995724,3.03,176.69,176.68,105.8]
[1752967003330,8.6865,176.69,176.68,105.8]
[1752967003734,3.03,176.69,176.68,105.8]
[1752967004934,3.03,176.69,176.66,3.12]
[1752967005134,4.24658503,176.68,176.67,102.66]
[1752967006234,9.90358503,176.68,176.67,102.66]
[1752967014939,9.90358503,176.68,176.67,105.71]
[1752967015443,4.24658503,176.68,176.67,105.71]
[1752967016139,3.03,176.68,176.67,105.71]
[1752967016339,3.03,176.68,176.67,111.3671]
[1752967018438,3.28,176.69,176.68,8.7068]
[1752967020346,8.9365,176.69,176.68,3.05]
[1752967021140,3.28,176.68,176.67,105.71]
[1752967024452,8.9368,176.68,176.67,105.71]
[1752967026257,3.28,176.68,176.67,105.71]
[1752967031255,8.9368,176.68,176.67,105.71]
[1752967031761,3.28,176.68,176.67,105.71]
[1752967033963,8.9368,176.68,176.67,105.71]
[1752967034763,3.28,176.68,176.67,105.71]
[1752967037867,8.9368,176.68,176.67,105.71]
[1752967039470,3.28,176.68,176.67,105.71]
[1752967041973,8.9368,176.68,176.67,3.05]
[1752967045968,3.24,176.67,176.62,4.72866399]
[1752967046177,3.24,176.63,176.59,3.14]
[1752967046473,8.8993,176.61,176.6,102.64]
[1752967047170,3.24,176.61,176.58,128.66770398]
[1752967047374,3.24,176.59,176.58,102.62]
[1752967047768,8.8997,176.59,176.58,102.62]
[1752967048173,5.6606,176.57,176.56,102.62]
[1752967048378,10.11718503,176.57,176.56,102.62]
[1752967049780,4.45658503,176.57,176.56,102.62]
[1752967050178,4.45658503,176.57,176.56,105.76]
[1752967050379,3.24,176.57,176.56,105.76]
[1752967050674,3.24,176.57,176.56,111.4207]
[1752967051179,1.21658503,176.58,176.56,111.4207]
[1752967051480,4.45658503,176.58,176.57,3.14]
[1752967052181,4.45658503,176.58,176.57,8.8003]
[1752967053580,4.45658503,176.58,176.57,3.14]
[1752967054275,10.11658503,176.58,176.57,3.14]
[1752967054477,10.11658503,176.58,176.56,102.62]
[1752967054674,3.24,176.57,176.56,102.62]
[1752967054975,8.9003,176.57,176.56,102.62]
[1752967055572,3.24,176.57,176.56,102.62]
[1752967055775,3.24,176.57,176.56,105.76]
[1752967056078,3.24,176.57,176.56,102.62]
[1752967056580,8.9003,176.57,176.56,102.62]
[1752967057281,3.24,176.57,176.51,3.14]
[1752967057470,1.21658503,176.52,176.51,102.66]
[1752967057675,1.21658503,176.52,176.5,3.14]
[1752967057875,1.21658503,176.52,176.5,102.66]
[1752967058075,3.24,176.51,176.5,102.66]
[1752967059083,3.24,176.51,176.5,105.8]
[1752967061883,8.9023,176.51,176.5,105.8]
[1752967062080,8.9023,176.51,176.5,102.66]
[1752967066289,3.24,176.51,176.5,102.66]
[1752967066482,3.24,176.51,176.5,105.8]
[1752967066685,3.24,176.52,176.51,3.14]
[1752967067389,1.21658503,176.53,176.51,3.14]
[1752967067588,3.24,176.53,176.52,105.84]
[1752967067788,3.24,176.55,176.53,3.14]
[1752967067983,4.45658503,176.56,176.55,3.14]
[1752967069194,10.11728503,176.56,176.55,3.14]
[1752967070988,8.9007,176.56,176.55,3.14]
[1752967072689,5.6603,176.58,176.55,5.661]
[1752967072885,3.05,176.59,176.57,3.16]
[1752967073089,3.05,176.59,176.58,105.84]
[1752967073892,8.7098,176.59,176.58,105.84]
[1752967074394,8.7098,176.59,176.58,102.68]
[1752967075896,3.05,176.59,176.58,105.84]
[1752967076596,8.7097,176.59,176.58,102.68]
[1752967078997,3.05,176.59,176.58,102.68]
[1752967079295,3.05,176.59,176.58,105.84]
[1752967081001,8.7095,176.6,176.59,3.16]
[1752967081896,8.7097,176.59,176.58,105.84]
[1752967082103,8.7097,176.59,176.58,102.68]
[1752967083802,3.05,176.59,176.58,102.68]
[1752967084007,3.05,176.59,176.58,105.84]
[1752967084196,3.05,176.6,176.58,105.84]
[1752967084400,3.05,176.6,176.59,3.16]
[1752967085206,1.9052464,176.64,176.59,3.16]
[1752967085400,3.05,176.62,176.61,3.16]
[1752967085600,3.05,176.62,176.61,105.82]
[1752967086196,3.05,176.62,176.55,1.9052464]
[1752967086401,3.05,176.61,176.57,3.16]
[1752967086798,8.7093,176.61,176.58,5.6598]
[1752967087002,3.05,176.6,176.59,102.66]
[1752967087798,3.05,176.6,176.59,105.82]
[1752967088203,8.7094,176.6,176.59,105.82]
[1752967088601,8.7094,176.6,176.59,102.66]
[1752967090606,3.05,176.6,176.59,105.82]
[1752967094906,4.26889095,176.6,176.59,105.82]
[1752967097404,9.92829095,176.6,176.59,102.66]
[1752967097915,3.05,176.59,176.55,3.16]
[1752967098114,4.26889095,176.57,176.56,102.64]
[1752967098913,3.05,176.57,176.56,102.64]
[1752967100112,3.05,176.57,176.56,111.4607]
[1752967102119,3.05,176.57,176.56,105.8]
[1752967104419,3.05,176.57,176.56,102.64]
[1752967104420,8.7103,176.57,176.56,102.64]
[1752967105618,10.61550432,176.57,176.56,102.64]
[1752967109023,3.23,176.56,176.52,3.28]
[1752967109222,3.23,176.54,176.53,102.66]
[1752967110523,8.8913,176.54,176.53,102.66]
[1752967112022,3.23,176.54,176.53,105.94]
[1752967113225,1.90520432,176.55,176.53,105.94]
[1752967113423,3.23,176.56,176.54,3.28]
[1752967113619,3.23,176.55,176.54,3.28]
[1752967115425,8.891,176.55,176.54,3.28]
[1752967116323,8.8913,176.54,176.53,105.94]
[1752967117130,3.23,176.54,176.53,105.94]
[1752967122336,8.8913,176.54,176.53,105.94]
[1752967123735,3.23,176.54,176.53,105.94]
[1752967124530,8.8913,176.54,176.53,105.94]
[1752967125235,8.8913,176.54,176.53,102.66]
[1752967126135,1.90520432,176.55,176.48,4.72866399]
[1752967126136,3.23,176.53,176.48,3.28]
[1752967126338,1.90520432,176.49,176.43,385.36866399]
[1752967126634,3.23,176.48,176.46,3.28]
[1752967126827,3.23,176.48,176.47,105.94]
[1752967129835,3.23,176.48,176.47,111.6036]
[1752967130036,3.23,176.49,176.48,3.28]
[1752967130438,8.893,176.49,176.48,3.28]
[1752967130639,3.23,176.49,176.48,3.28]
[1752967131641,3.23,176.49,176.48,102.68]
[1752967132345,3.23,176.49,176.47,3.08]
[1752967132641,3.23,176.49,176.48,102.68]
[1752967133035,3.23,176.49,176.48,105.76]
[1752967135345,3.23,176.49,176.48,3.08]
[1752967135540,3.23,176.49,176.48,105.76]
[1752967135840,3.06,176.5,176.48,108.3432]
[1752967136146,3.06,176.55,176.49,3.08]
[1752967136646,3.06,176.53,176.52,3.08]
[1752967136946,3.06,176.53,176.52,105.76]
[1752967137341,3.06,176.53,176.52,3.08]
[1752967137647,3.06,176.53,176.52,105.76]
[1752967138045,8.7216,176.53,176.52,105.76]
[1752967138346,8.7216,176.53,176.52,102.68]
[1752967138548,8.7216,176.53,176.5,8.7423]
[1752967138844,3.06,176.52,176.51,105.76]
[1752967139244,3.06,176.52,176.51,102.68]
[1752967142447,3.06,176.52,176.51,105.76]
[1752967148657,3.06,176.52,176.51,111.4223]
[1752967152456,3.06,176.52,176.51,105.76]
[1752967153356,8.7219,176.52,176.49,8.7428]
[1752967153661,8.7219,176.52,176.51,102.68]
[1752967164775,3.16,176.51,176.46,4.72866399]
[1752967164969,3.16,176.51,176.47,102.68]
[1752967165269,3.16,176.5,176.49,3.31]
[1752967165474,3.16,176.5,176.49,105.99]
[1752967168673,8.8226,176.5,176.49,102.68]
[1752967171686,3.16,176.5,176.49,105.99]
[1752967176087,8.8226,176.5,176.49,102.68]
[1752967178487,8.8226,176.5,176.49,105.99]
[1752967180389,8.8226,176.5,176.49,102.68]
[1752967182490,8.8226,176.5,176.49,105.99]
[1752967186094,3.16,176.5,176.49,105.99]
[1752967186890,1.21985225,176.53,176.5,3.31]
[1752967187091,3.16,176.52,176.51,102.68]
[1752967187290,8.822,176.52,176.51,102.68]
[1752967187691,8.822,176.52,176.51,105.99]
[1752967200402,3.16,176.52,176.51,111.6523]
[1752967200598,4.39985225,176.53,176.52,3.22]
[1752967200995,10.06145225,176.53,176.52,3.22]
[1752967201699,3.18,176.53,176.52,8.8819]
[1752967202902,6.88125225,176.54,176.52,5.6619]
[1752967202903,10.06125225,176.54,176.52,5.6619]
[1752967203105,10.06125225,176.54,176.53,105.88]
[1752967210602,4.39985225,176.54,176.53,105.88]
[1752967212006,10.06115225,176.54,176.53,105.88]
[1752967214110,10.06115225,176.54,176.53,102.66]
[1752967214406,8.8423,176.51,176.5,3.22]
[1752967214607,4.39985225,176.51,176.5,102.64]
[1752967214799,4.39985225,176.51,176.5,105.86]
[1752967217207,3.18,176.5,176.44,4.72866399]
[1752967217405,3.18,176.46,176.45,3.22]
[1752967217711,3.18,176.46,176.45,105.86]
[1752967218910,3.18,176.46,176.45,111.5242]
[1752967219612,4.39985225,176.46,176.45,111.5242]
[1752967221009,3.23,176.49,176.46,3.32]
[1752967221213,1.21985225,176.51,176.48,3.32]
[1752967221414,1.21985225,176.51,176.5,3.32]
[1752967221712,4.44985225,176.51,176.5,3.32]
[1752967223020,10.11215225,176.51,176.5,3.32]
[1752967223514,5.6626,176.5,176.49,105.96]
[1752967223717,8.8926,176.5,176.49,102.64]
[1752967224616,5.6626,176.5,176.49,102.66]
[1752967224818,8.8926,176.5,176.49,102.66]
[1752967229724,5.6633,176.48,176.45,8.9841]
[1752967230020,3.23,176.46,176.45,8.9841]
[1752967230222,3.23,176.46,176.45,111.6441]
[1752967231024,3.23,176.46,176.45,105.98]
[1752967232125,8.8939,176.46,176.45,102.66]
[1752967234723,3.23,176.46,176.45,102.66]
[1752967235220,8.8939,176.46,176.45,102.66]
[1752967238527,3.23,176.46,176.45,105.98]
[1752967239523,3.23,176.49,176.45,102.66]
[1752967239730,1.21985225,176.5,176.47,3.32]
[1752967239924,1.21985225,176.5,176.49,3.32]
[1752967240528,4.44985225,176.5,176.49,3.32]
[1752967242731,8.892,176.52,176.49,3.32]
[1752967243330,3.23,176.51,176.49,3.32]
[1752967244933,8.8923,176.51,176.49,3.32]
[1752967247236,3.23,176.5,176.49,3.32]
[1752967248137,3.23,176.51,176.5,3.32]
[1752967248345,3.23,176.52,176.5,3.32]
[1752967248543,8.8917,176.53,176.51,105.98]
[1752967248842,8.8917,176.53,176.52,3.32]
[1752967249539,3.23,176.53,176.46,3.32]
[1752967249735,1.90619033,176.49,176.46,3.32]
[1752967249934,3.23,176.48,176.46,102.64]
[1752967250137,5.6636,176.47,176.46,102.64]
[1752967250343,8.7236,176.47,176.46,102.64]
[1752967263850,3.06,176.45,176.42,3.17]
[1752967264044,4.96619033,176.45,176.42,105.83]
[1752967264243,3.06,176.44,176.42,105.83]
[1752967264646,8.7248,176.43,176.42,105.83]
[1752967265152,9.94611621,176.43,176.42,105.83]
[1752967266953,8.7248,176.43,176.42,105.83]
[1752967269152,3.06,176.43,176.36,4.72866399]
[1752967269456,11.3265,176.48,176.37,105.85]
[1752967269457,3.06,176.39,176.37,105.85]
[1752967269655,3.06,176.4,176.39,3.17]
[1752967270147,3.06,176.4,176.38,105.85]
[1752967270352,8.7261,176.39,176.38,102.68]
[1752967270753,3.06,176.38,176.36,102.74]
[1752967271053,6.3377384,176.46,176.36,102.74]
[1752967271054,4.96833457,176.37,176.36,102.74]
[1752967271858,10.63533457,176.37,176.36,102.74]
[1752967272153,3.06,176.36,176.33,3.17]
[1752967272458,3.06,176.36,176.33,105.91]
[1752967273360,5.6676,176.35,176.33,105.91]
[1752967273554,3.06,176.34,176.33,105.91]
[1752967273955,8.7277,176.34,176.33,105.91]
[1752967274257,8.7277,176.34,176.33,102.74]
[1752967274854,5.6684,176.33,176.31,102.76]
[1752967275156,3.06,176.32,176.31,102.76]
[1752967275658,8.7284,176.32,176.31,102.76]
[1752967277055,5.6691,176.3,176.29,102.8]
[1752967277258,5.6691,176.3,176.26,3.17]
[1752967277259,3.06,176.3,176.26,3.17]
[1752967277459,1.90833457,176.29,176.27,102.8]
[1752967277759,3.06,176.28,176.27,105.97]
[1752967277960,3.06,176.3,176.28,3.17]
[1752967278660,4.96833457,176.31,176.27,102.8]
[1752967279061,4.96833457,176.31,176.28,8.8394]
[1752967279252,4.96833457,176.31,176.29,3.17]
[1752967279659,4.96833457,176.31,176.29,5.6692]
[1752967279861,3.06,176.34,176.31,3.17]
[1752967280360,1.90833457,176.35,176.32,3.04]
[1752967280561,3.19,176.34,176.32,3.04]
[1752967280863,5.668,176.33,176.32,3.04]
[1752967281064,3.19,176.32,176.3,102.86]
[1752967281961,3.19,176.3,176.28,3.04]
[1752967282163,3.19,176.3,176.26,3.04]
[1752967282461,7.57783457,176.29,176.26,3.04]
[1752967282663,3.19,176.27,176.26,3.04]
[1752967283763,5.09833457,176.29,176.26,3.04]
[1752967284062,3.19,176.29,176.26,3.04]
[1752967284766,3.19,176.28,176.25,102.88]
[1752967285162,1.90833457,176.31,176.25,102.88]
[1752967285368,3.19,176.27,176.26,3.04]
[1752967286666,8.86,176.27,176.26,3.04]
[1752967287258,3.19,176.27,176.26,3.04]
[1752967288168,5.6703,176.26,176.25,102.9]
[1752967288363,8.8603,176.26,176.25,102.9]